Workbook

Sheet Instructions and Summary
C1: Instructions and Summary
A3: Award Number: | D3: Date of Submission:
A4: Award Recipient: | D4: Form submitted by:
N5: (May be award recipient or sub-recipient)
A6: Please read the instructions on each worksheet tab before starting. If you have any questions, please ask your EERE contact! Do not modify this template or any cells or formulas!
A7: 1. If using this form for award application, negotiation, or budget revision, fill out the blank white cells in workbook tabs a. through j. with total project costs. 2. Blue colored cells contain instructions, headers, or summary calculations and should not be modified. Only blank white cells should be populated. 3. Enter detailed support for the project costs identified for each Category line item within each worksheet tab to autopopulate the summary tab. 4. The total budget presented on tabs a. through i. must include both Federal (DOE) and Non-Federal (cost share) portions. 5. All costs incurred by the preparer's sub-recipients, contractors, and Federal Research and Development Centers (FFRDCs), should be entered only in section f. Contractual. All other sections are for the costs of the preparer only. 6. Ensure all entered costs are allowable, allocable, and reasonable in accordance with the administrative requirements prescribed in 2 CFR 200, and the applicable cost principles for each entity type: FAR Part 31 for For-Profit entities; and 2 CFR Part 200 Subpart E - Cost Principles for all other non-federal entities. 7. Add rows as needed throughout tabs a. through j. If rows are added, formulas/calculations may need to be adjusted by the preparer. Do not add rows to the Instructions and Summary tab. If your project contains more than five budget periods, consult your EERE contact before adding additional budget period rows or columns. 8. ALL budget period cost categories are rounded to the nearest dollar. BURDEN DISCLOSURE STATEMENT Public reporting burden for this collection of information is estimated to average 24 hours per response, including the time for reviewing instructions, searching existing data sources, gathering and maintaining the data needed, and completing and reviewing the collection of information. Send comments regarding this burden estimate or any other aspect of this collection of information, including suggestions for reducing this burden, to Office of Information Resources Management Policy, Plans, and Oversight, AD-241-2 - GTN, Paperwork Reduction Project (1910-5162), U.S. Department of Energy 1000 Independence Avenue, S.W., Washington, DC 20585; and to the Office of Management and Budget, Paperwork Reduction Project (1910-5162), Washington, DC 20503.
A9: SUMMARY OF BUDGET CATEGORY COSTS PROPOSED The values in this summary table are from entries made in subsequent tabs, only blank white cells require data entry
A10: Section A - Budget Summary
C11: Federal | D11: Cost Share | L11: Total Costs | M11: Cost Share % | N11: Proposed Budget Period Dates
B12: Budget Period 1 | C12: =L12-D12 -> 0 | D12: ='j. Cost Share'!D17 -> 0 | L12: =B39 -> 0 | M12: =IF(L12>0,D12/L12,0) -> 0 | N12: Example!!! 01/01/2014 - 12/31/2014
B13: Budget Period 2 | C13: =L13-D13 -> 0 | D13: ='j. Cost Share'!E17 -> 0 | L13: =C39 -> 0 | M13: =IF(L13>0,D13/L13,0) -> 0
B14: Budget Period 3 | C14: =L14-D14 -> 0 | D14: ='j. Cost Share'!F17 -> 0 | L14: =D39 -> 0 | M14: 0
B15: Budget Period 4 | C15: 0 | D15: ='j. Cost Share'!G17 -> 0 | L15: =E39 -> 0 | M15: 0
B16: Budget Period 5 | C16: 0 | D16: ='j. Cost Share'!H17 -> 0 | L16: =F39 -> 0 | M16: 0
B17: Budget Period 6 | C17: 0 | D17: ='j. Cost Share'!I17 -> 0 | L17: =G39 -> 0 | M17: 0
B18: Budget Period 7 | C18: 0 | D18: ='j. Cost Share'!J17 -> 0 | L18: =H39 -> 0 | M18: 0
B19: Budget Period 8 | C19: 0 | D19: ='j. Cost Share'!K17 -> 0 | L19: =I39 -> 0 | M19: 0
B20: Budget Period 9 | C20: 0 | D20: ='j. Cost Share'!L17 -> 0 | L20: =J39 -> 0 | M20: 0
B21: Budget Period 10 | C21: 0 | D21: ='j. Cost Share'!M17 -> 0 | L21: =K39 -> 0 | M21: 0
B22: Total | C22: =SUM(C12:C21) -> 0 | D22: =SUM(D12:D21) -> 0 | L22: =SUM(L12:L21) -> 0 | M22: 0
A23: Section B - Budget Categories
A24: CATEGORY | B24: Budget Period 1 | C24: Budget Period 2 | D24: Budget Period 3 | E24: Budget Period 4 | F24: Budget Period 5 | G24: Budget Period 6 | H24: Budget Period 7 | I24: Budget Period 8 | J24: Budget Period 9 | K24: Budget Period 10 | L24: Total Costs | M24: % of Project | N24: Comments (as needed)
A25: a. Personnel | B25: ='a. Personnel'!E34 -> 0 | C25: ='a. Personnel'!H34 -> 0 | D25: ='a. Personnel'!K34 -> 0 | E25: ='a. Personnel'!N34 -> 0 | F25: ='a. Personnel'!Q34 -> 0 | G25: ='a. Personnel'!T34 -> 0 | H25: ='a. Personnel'!W34 -> 0 | I25: ='a. Personnel'!Z34 -> 0 | J25: ='a. Personnel'!AC34 -> 0 | K25: ='a. Personnel'!AF34 -> 0 | L25: =SUM(B25:K25) -> 0 | M25: =IF(L25>0,L25/L22,0) -> 0
A26: b. Fringe Benefits | B26: ='b. Fringe'!D13 -> 0 | C26: ='b. Fringe'!G13 -> 0 | D26: ='b. Fringe'!J13 -> 0 | E26: ='b. Fringe'!M13 -> 0 | F26: ='b. Fringe'!P13 -> 0 | G26: ='b. Fringe'!S13 -> 0 | H26: ='b. Fringe'!V13 -> 0 | I26: ='b. Fringe'!Y13 -> 0 | J26: ='b. Fringe'!AB13 -> 0 | K26: ='b. Fringe'!AE13 -> 0 | L26: =SUM(B26:K26) -> 0 | M26: =IF(L26>0,L26/L22,0) -> 0
A27: c. Travel | B27: ='c. Travel'!K14 -> 0 | C27: ='c. Travel'!K22 -> 0 | D27: ='c. Travel'!K30 -> 0 | E27: ='c. Travel'!K38 -> 0 | F27: ='c. Travel'!K46 -> 0 | G27: ='c. Travel'!K54 -> 0 | H27: ='c. Travel'!K62 -> 0 | I27: ='c. Travel'!K70 -> 0 | J27: ='c. Travel'!K78 -> 0 | K27: ='c. Travel'!K86 -> 0 | L27: =SUM(B27:K27) -> 0 | M27: =IF(L27>0,L27/L22,0) -> 0
A28: d. Equipment | B28: ='d. Equipment'!E14 -> 0 | C28: ='d. Equipment'!E22 -> 0 | D28: ='d. Equipment'!E30 -> 0 | E28: ='d. Equipment'!E38 -> 0 | F28: ='d. Equipment'!E46 -> 0 | G28: ='d. Equipment'!E54 -> 0 | H28: ='d. Equipment'!E62 -> 0 | I28: ='d. Equipment'!E70 -> 0 | J28: ='d. Equipment'!E78 -> 0 | K28: ='d. Equipment'!E86 -> 0 | L28: =SUM(B28:K28) -> 0 | M28: =IF(L28>0,L28/L22,0) -> 0
A29: e. Supplies | B29: ='e. Supplies'!E15 -> 0 | C29: ='e. Supplies'!E25 -> 0 | D29: ='e. Supplies'!E35 -> 0 | E29: ='e. Supplies'!E45 -> 0 | F29: ='e. Supplies'!E55 -> 0 | G29: ='e. Supplies'!E65 -> 0 | H29: ='e. Supplies'!E75 -> 0 | I29: ='e. Supplies'!E85 -> 0 | J29: ='e. Supplies'!E95 -> 0 | K29: ='e. Supplies'!E105 -> 0 | L29: =SUM(B29:K29) -> 0 | M29: =IF(L29>0,L29/L22,0) -> 0
A30: f. Contractual
A31: Sub-recipient | B31: ='f. Contractual'!E13 -> 0 | C31: ='f. Contractual'!F13 -> 0 | D31: ='f. Contractual'!G13 -> 0 | E31: ='f. Contractual'!H13 -> 0 | F31: ='f. Contractual'!I13 -> 0 | G31: ='f. Contractual'!J13 -> 0 | H31: ='f. Contractual'!K13 -> 0 | I31: ='f. Contractual'!L13 -> 0 | J31: ='f. Contractual'!M13 -> 0 | K31: ='f. Contractual'!N13 -> 0 | L31: =SUM(B31:K31) -> 0 | M31: =IF(L31>0,L31/L22,0) -> 0
A32: Contractor | B32: ='f. Contractual'!E22 -> 0 | C32: ='f. Contractual'!F22 -> 0 | D32: ='f. Contractual'!G22 -> 0 | E32: ='f. Contractual'!H22 -> 0 | F32: ='f. Contractual'!I22 -> 0 | G32: ='f. Contractual'!J22 -> 0 | H32: ='f. Contractual'!K22 -> 0 | I32: ='f. Contractual'!L22 -> 0 | J32: ='f. Contractual'!M22 -> 0 | K32: ='f. Contractual'!N22 -> 0 | L32: 0 | M32: =IF(L32>0,L32/L22,0) -> 0
A33: FFRDC | B33: ='f. Contractual'!E27 -> 0 | C33: ='f. Contractual'!F27 -> 0 | D33: ='f. Contractual'!G27 -> 0 | E33: ='f. Contractual'!H27 -> 0 | F33: ='f. Contractual'!I27 -> 0 | G33: ='f. Contractual'!J27 -> 0 | H33: ='f. Contractual'!K27 -> 0 | I33: ='f. Contractual'!L27 -> 0 | J33: ='f. Contractual'!M27 -> 0 | K33: ='f. Contractual'!N27 -> 0 | L33: 0 | M33: =IF(L33>0,L33/L22,0) -> 0
A34: Total Contractual | B34: =SUM(B31:B33) -> 0 | C34: =SUM(C31:C33) -> 0 | D34: =SUM(D31:D33) -> 0 | E34: =SUM(E31:E33) -> 0 | F34: =SUM(F31:F33) -> 0 | G34: =SUM(G31:G33) -> 0 | H34: 0 | I34: 0 | J34: 0 | K34: 0 | L34: 0 | M34: =IF(L34>0,L34/L22,0) -> 0
A35: g. Construction | B35: ='g. Construction'!C15 -> 0 | C35: ='g. Construction'!C22 -> 0 | D35: ='g. Construction'!C29 -> 0 | E35: ='g. Construction'!C36 -> 0 | F35: ='g. Construction'!C43 -> 0 | G35: ='g. Construction'!C50 -> 0 | H35: ='g. Construction'!C57 -> 0 | I35: ='g. Construction'!C64 -> 0 | J35: ='g. Construction'!C71 -> 0 | K35: ='g. Construction'!C78 -> 0 | L35: 0 | M35: =IF(L35>0,L35/L22,0) -> 0
A36: h. Other Direct Costs | B36: ='h. Other'!C14 -> 0 | C36: ='h. Other'!C22 -> 0 | D36: ='h. Other'!C30 -> 0 | E36: ='h. Other'!C38 -> 0 | F36: ='h. Other'!C46 -> 0 | G36: ='h. Other'!C54 -> 0 | H36: ='h. Other'!C62 -> 0 | I36: ='h. Other'!C70 -> 0 | J36: ='h. Other'!C78 -> 0 | K36: ='h. Other'!C86 -> 0 | L36: 0 | M36: =IF(L36>0,L36/L22,0) -> 0
A37: Total Direct Costs | B37: =B25+B26+B27+B28+B29+B34+B35+B36 -> 0 | C37: =C25+C26+C27+C28+C29+C34+C35+C36 -> 0 | D37: =D25+D26+D27+D28+D29+D34+D35+D36 -> 0 | E37: =E25+E26+E27+E28+E29+E34+E35+E36 -> 0 | F37: =F25+F26+F27+F28+F29+F34+F35+F36 -> 0 | G37: =G25+G26+G27+G28+G29+G34+G35+G36 -> 0 | H37: 0 | I37: 0 | J37: 0 | K37: 0 | L37: 0 | M37: =IF(L37>0,L37/L22,0) -> 0
A38: i. Indirect Charges | B38: ='i. Indirect'!B16 -> 0 | C38: ='i. Indirect'!C16 -> 0 | D38: ='i. Indirect'!D16 -> 0 | E38: ='i. Indirect'!E16 -> 0 | F38: ='i. Indirect'!F16 -> 0 | G38: ='i. Indirect'!G16 -> 0 | H38: ='i. Indirect'!H16 -> 0 | I38: ='i. Indirect'!I16 -> 0 | J38: ='i. Indirect'!J16 -> 0 | K38: ='i. Indirect'!K16 -> 0 | L38: 0 | M38: =IF(L38>0,L38/L22,0) -> 0
A39: Total Costs | B39: =B37+B38 -> 0 | C39: =C37+C38 -> 0 | D39: =D37+D38 -> 0 | E39: =E37+E38 -> 0 | F39: 0 | G39: 0 | H39: 0 | I39: 0 | J39: 0 | K39: 0 | L39: =L37+L38 -> 0 | M39: =M37+M38 -> 0
A41: Additional Explanation (as needed):

Sheet a. Personnel
A1: Detailed Budget Justification
A2: a. Personnel
A3: INSTRUCTIONS - PLEASE READ!!! 1. List project costs solely for employees of the entity completing this form. All personnel costs for subrecipients and contractors must be included under f. Contractual. 2. All personnel should be identified by position title and not employee name. Enter the amount of time (e.g., hours or % of time) and the base hourly rate and the total direct personnel compensation will automatically calculate. Rate basis (e.g., rate negotiated for each hour worked on the project, labor distribution report, state civil service rates, etc.) must also be identified. 3. If loaded labor rates are utilized, a description of the costs the loaded rate is comprised of must be included in the Additional Explanation section below. DOE must review all components of the loaded labor rate for reasonableness and unallowable costs (e.g. fee or profit). 4. If a position and hours are attributed to multiple employees (e.g. Technician working 4000 hours) the number of employees for that position title must be identified. 5. Each budget period is rounded to the nearest dollar.
A6: SOPO Task # | B6: Position Title | C6: Budget Period 1 | F6: Budget Period 2 | I6: Budget Period 3 | L6: Budget Period 4 | O6: Budget Period 5 | R6: Budget Period 6 | U6: Budget Period 7 | X6: Budget Period 8 | AA6: Budget Period 9 | AD6: Budget Period 10 | AG6: Project Total Hours | AH6: Project Total Dollars | AI6: Rate Basis
C7: Time (Hrs) | D7: Hourly Rate ($/Hr) | E7: Total Budget Period 1 | F7: Time (Hrs) | G7: Hourly Rate ($/Hr) | H7: Total Budget Period 2 | I7: Time (Hrs) | J7: Hourly Rate ($/Hr) | K7: Total Budget Period 3 | L7: Time (Hrs) | M7: Hourly Rate ($/Hr) | N7: Total Budget Period 4 | O7: Time (Hrs) | P7: Hourly Rate ($/Hr) | Q7: Total Budget Period 5 | R7: Time (Hrs) | S7: Hourly Rate ($/Hr) | T7: Total Budget Period 5 | U7: Time (Hrs) | V7: Hourly Rate ($/Hr) | W7: Total Budget Period 5 | X7: Time (Hrs) | Y7: Hourly Rate ($/Hr) | Z7: Total Budget Period 5 | AA7: Time (Hrs) | AB7: Hourly Rate ($/Hr) | AC7: Total Budget Period 5 | AD7: Time (Hrs) | AE7: Hourly Rate ($/Hr) | AF7: Total Budget Period 5
A8: 1 | B8: Sr. Engineer (EXAMPLE!!!) | C8: 2000 | D8: 85 | E8: =C8*D8 -> 170000 | F8: 200 | G8: 50 | H8: =F8*G8 -> 10000 | I8: 200 | J8: 50 | K8: =I8*J8 -> 10000 | L8: 200 | M8: 50 | N8: =L8*M8 -> 10000 | O8: 200 | P8: 50 | Q8: =O8*P8 -> 10000 | R8: 200 | S8: 50 | T8: =R8*S8 -> 10000 | U8: 200 | V8: 50 | W8: =U8*V8 -> 10000 | X8: 200 | Y8: 50 | Z8: =X8*Y8 -> 10000 | AA8: 200 | AB8: 50 | AC8: =AA8*AB8 -> 10000 | AD8: 200 | AE8: 50 | AF8: =AD8*AE8 -> 10000 | AG8: =C8+F8+I8 -> 2400 | AH8: =E8+H8+K8 -> 190000
A9: 2 | B9: Technicians (2) | C9: 4000 | D9: 20 | E9: 80000 | F9: 0 | G9: 0 | H9: 0 | I9: 0 | J9: 0 | K9: 0 | L9: 0 | M9: 0 | N9: 0 | O9: 0 | P9: 0 | Q9: 0 | R9: 0 | S9: 0 | T9: 0 | U9: 0 | V9: 0 | W9: 0 | X9: 0 | Y9: 0 | Z9: 0 | AA9: 0 | AB9: 0 | AC9: 0 | AD9: 0 | AE9: 0 | AF9: 0 | AG9: =C9+F9+I9 -> 4000 | AH9: =E9+H9+K9 -> 80000
E10: 0 | H10: 0 | K10: 0 | N10: 0 | Q10: 0 | T10: 0 | W10: 0 | Z10: 0 | AC10: 0 | AF10: 0 | AG10: =SUM(C10+F10+I10+L10+O10+R10+U10+X10+AA10+AD10) -> 0 | AH10: =SUM(E10+H10+K10+N10+Q10+T10+W10+Z10+AC10+AF10) -> 0
E11: 0 | H11: 0 | K11: 0 | N11: 0 | Q11: 0 | T11: 0 | W11: 0 | Z11: 0 | AC11: 0 | AF11: 0 | AG11: 0 | AH11: 0
E12: 0 | H12: 0 | K12: 0 | N12: 0 | Q12: 0 | T12: 0 | W12: 0 | Z12: 0 | AC12: 0 | AF12: 0 | AG12: 0 | AH12: 0
E13: 0 | H13: 0 | K13: 0 | N13: 0 | Q13: 0 | T13: 0 | W13: 0 | Z13: 0 | AC13: 0 | AF13: 0 | AG13: 0 | AH13: 0
E14: 0 | H14: 0 | K14: 0 | N14: 0 | Q14: 0 | T14: 0 | W14: 0 | Z14: 0 | AC14: 0 | AF14: 0 | AG14: 0 | AH14: 0
E15: 0 | H15: 0 | K15: 0 | N15: 0 | Q15: 0 | T15: 0 | W15: 0 | Z15: 0 | AC15: 0 | AF15: 0 | AG15: 0 | AH15: 0
E16: 0 | H16: 0 | K16: 0 | N16: 0 | Q16: 0 | T16: 0 | W16: 0 | Z16: 0 | AC16: 0 | AF16: 0 | AG16: 0 | AH16: 0
E17: 0 | H17: 0 | K17: 0 | N17: 0 | Q17: 0 | T17: 0 | W17: 0 | Z17: 0 | AC17: 0 | AF17: 0 | AG17: 0 | AH17: 0
E18: 0 | H18: 0 | K18: 0 | N18: 0 | Q18: 0 | T18: 0 | W18: 0 | Z18: 0 | AC18: 0 | AF18: 0 | AG18: 0 | AH18: 0
E19: 0 | H19: 0 | K19: 0 | N19: 0 | Q19: 0 | T19: 0 | W19: 0 | Z19: 0 | AC19: 0 | AF19: 0 | AG19: 0 | AH19: 0
E20: 0 | H20: 0 | K20: 0 | N20: 0 | Q20: 0 | T20: 0 | W20: 0 | Z20: 0 | AC20: 0 | AF20: 0 | AG20: 0 | AH20: 0
E21: 0 | H21: 0 | K21: 0 | N21: 0 | Q21: 0 | T21: 0 | W21: 0 | Z21: 0 | AC21: 0 | AF21: 0 | AG21: 0 | AH21: 0
E22: 0 | H22: 0 | K22: 0 | N22: 0 | Q22: 0 | T22: 0 | W22: 0 | Z22: 0 | AC22: 0 | AF22: 0 | AG22: 0 | AH22: 0
E23: 0 | H23: 0 | K23: 0 | N23: 0 | Q23: 0 | T23: 0 | W23: 0 | Z23: 0 | AC23: 0 | AF23: 0 | AG23: 0 | AH23: 0
E24: 0 | H24: 0 | K24: 0 | N24: 0 | Q24: 0 | T24: 0 | W24: 0 | Z24: 0 | AC24: 0 | AF24: 0 | AG24: 0 | AH24: 0
E25: 0 | H25: 0 | K25: 0 | N25: 0 | Q25: =O25*P25 -> 0 | T25: =R25*S25 -> 0 | W25: =U25*V25 -> 0 | Z25: =X25*Y25 -> 0 | AC25: =AA25*AB25 -> 0 | AF25: =AD25*AE25 -> 0 | AG25: 0 | AH25: 0
E26: 0 | H26: 0 | K26: 0 | N26: 0 | Q26: =O26*P26 -> 0 | T26: =R26*S26 -> 0 | W26: =U26*V26 -> 0 | Z26: =X26*Y26 -> 0 | AC26: =AA26*AB26 -> 0 | AF26: =AD26*AE26 -> 0 | AG26: 0 | AH26: 0
E27: 0 | H27: 0 | K27: 0 | N27: 0 | Q27: 0 | T27: =R27*S27 -> 0 | W27: =U27*V27 -> 0 | Z27: =X27*Y27 -> 0 | AC27: =AA27*AB27 -> 0 | AF27: =AD27*AE27 -> 0 | AG27: 0 | AH27: 0
E28: 0 | H28: 0 | K28: 0 | N28: 0 | Q28: 0 | T28: 0 | W28: 0 | Z28: 0 | AC28: 0 | AF28: 0 | AG28: 0 | AH28: 0
E29: 0 | H29: 0 | K29: 0 | N29: 0 | Q29: 0 | T29: 0 | W29: 0 | Z29: 0 | AC29: 0 | AF29: 0 | AG29: 0 | AH29: 0
E30: 0 | H30: 0 | K30: 0 | N30: 0 | Q30: 0 | T30: 0 | W30: 0 | Z30: 0 | AC30: 0 | AF30: 0 | AG30: 0 | AH30: 0
E31: =C31*D31 -> 0 | H31: 0 | K31: 0 | N31: 0 | Q31: 0 | T31: 0 | W31: 0 | Z31: 0 | AC31: 0 | AF31: 0 | AG31: 0 | AH31: 0
E32: =C32*D32 -> 0 | H32: =F32*G32 -> 0 | K32: =I32*J32 -> 0 | N32: =L32*M32 -> 0 | Q32: =O32*P32 -> 0 | T32: =R32*S32 -> 0 | W32: =U32*V32 -> 0 | Z32: =X32*Y32 -> 0 | AC32: =AA32*AB32 -> 0 | AF32: =AD32*AE32 -> 0 | AG32: 0 | AH32: 0
E33: =C33*D33 -> 0 | H33: =F33*G33 -> 0 | K33: =I33*J33 -> 0 | N33: =L33*M33 -> 0 | Q33: =O33*P33 -> 0 | T33: =R33*S33 -> 0 | W33: =U33*V33 -> 0 | Z33: =X33*Y33 -> 0 | AC33: =AA33*AB33 -> 0 | AF33: =AD33*AE33 -> 0 | AG33: 0 | AH33: 0
A34: TOTAL PERSONNEL | C34: =SUM(C10:C33) -> 0 | E34: =SUM(E10:E33) -> 0 | F34: =SUM(F10:F33) -> 0 | H34: =SUM(H10:H33) -> 0 | I34: =SUM(I10:I33) -> 0 | K34: =SUM(K10:K33) -> 0 | L34: =SUM(L10:L33) -> 0 | N34: =SUM(N10:N33) -> 0 | O34: =SUM(O10:O33) -> 0 | Q34: =SUM(Q10:Q33) -> 0 | R34: =SUM(R10:R33) -> 0 | T34: =SUM(T10:T33) -> 0 | U34: =SUM(U10:U33) -> 0 | W34: =SUM(W10:W33) -> 0 | X34: =SUM(X10:X33) -> 0 | Z34: =SUM(Z10:Z33) -> 0 | AA34: =SUM(AA10:AA33) -> 0 | AC34: =SUM(AC10:AC33) -> 0 | AD34: =SUM(AD10:AD33) -> 0 | AF34: =SUM(AF10:AF33) -> 0 | AG34: 0 | AH34: =E34+H34+K34+N34+Q34+T34+W34+Z34+AC34+AF34 -> 0
A36: Additional Explanation (as needed):

Sheet b. Fringe
A1: Detailed Budget Justification
A2: b. Fringe Benefits
A3: INSTRUCTIONS - PLEASE READ!!! 1. Fill out the table below by position title. If all employees receive the same fringe benefits, you can show "Total Personnel" in the Labor Type column instead of listing out all position titles. 2. The rates and how they are applied should not be averaged to get one fringe cost percentage. Complex calculations should be described/provided in the Additional Explanation section below. 3. The fringe benefit rates should be applied to all positions, regardless of whether those funds will be supported by Federal Share or Recipient Cost Share. 4. Each budget period is rounded to the nearest dollar.
A5: Labor Type | B5: Budget Period 1 | E5: Budget Period 2 | H5: Budget Period 3 | K5: Budget Period 4 | N5: Budget Period 5 | Q5: Budget Period 6 | T5: Budget Period 7 | W5: Budget Period 8 | Z5: Budget Period 9 | AC5: Budget Period 10 | AF5: Total Project
B6: Personnel Costs | C6: Rate | D6: Total | E6: Personnel Costs | F6: Rate | G6: Total | H6: Personnel Costs | I6: Rate | J6: Total | K6: Personnel Costs | L6: Rate | M6: Total | N6: Personnel Costs | O6: Rate | P6: Total | Q6: Personnel Costs | R6: Rate | S6: Total | T6: Personnel Costs | U6: Rate | V6: Total | W6: Personnel Costs | X6: Rate | Y6: Total | Z6: Personnel Costs | AA6: Rate | AB6: Total | AC6: Personnel Costs | AD6: Rate | AE6: Total
A7: EXAMPLE!!! Sr. Engineer | B7: 170000 | C7: 0.2 | D7: =B7*C7 -> 34000 | E7: 10000 | F7: 0.2 | G7: =E7*F7 -> 2000 | H7: 10000 | I7: 0.2 | J7: =H7*I7 -> 2000 | K7: 10000 | L7: 0.2 | M7: =K7*L7 -> 2000 | N7: 10000 | O7: 0.2 | P7: =N7*O7 -> 2000 | Q7: 10000 | R7: 0.2 | S7: =Q7*R7 -> 2000 | T7: 10000 | U7: 0.2 | V7: =T7*U7 -> 2000 | W7: 10000 | X7: 0.2 | Y7: =W7*X7 -> 2000 | Z7: 10000 | AA7: 0.2 | AB7: =Z7*AA7 -> 2000 | AC7: 10000 | AD7: 0.2 | AE7: =AC7*AD7 -> 2000 | AF7: =D7+G7+J7 -> 38000
D8: =C8*B8 -> 0 | G8: 0 | J8: 0 | M8: 0 | P8: 0 | S8: 0 | V8: 0 | Y8: 0 | AB8: 0 | AE8: 0 | AF8: =SUM(D8+G8+J8+M8+P8+S8+V8+Y8+AB8+AE8) -> 0
D9: =C9*B9 -> 0 | G9: 0 | J9: 0 | M9: 0 | P9: 0 | S9: 0 | V9: 0 | Y9: 0 | AB9: 0 | AE9: 0 | AF9: =SUM(D9+G9+J9+M9+P9+S9+V9+Y9+AB9+AE9) -> 0
D10: =C10*B10 -> 0 | G10: 0 | J10: 0 | M10: 0 | P10: 0 | S10: 0 | V10: 0 | Y10: 0 | AB10: 0 | AE10: 0 | AF10: 0
D11: =C11*B11 -> 0 | G11: 0 | J11: 0 | M11: 0 | P11: 0 | S11: 0 | V11: 0 | Y11: 0 | AB11: 0 | AE11: 0 | AF11: 0
D12: =C12*B12 -> 0 | G12: 0 | J12: 0 | M12: 0 | P12: 0 | S12: 0 | V12: 0 | Y12: 0 | AB12: 0 | AE12: 0 | AF12: 0
A13: TOTAL FRINGE | B13: =SUM(B8:B12) -> 0 | D13: =SUM(D8:D12) -> 0 | E13: =SUM(E8:E12) -> 0 | G13: =SUM(G8:G12) -> 0 | H13: =SUM(H8:H12) -> 0 | J13: =SUM(J8:J12) -> 0 | K13: =SUM(K8:K12) -> 0 | M13: =SUM(M8:M12) -> 0 | N13: =SUM(N8:N12) -> 0 | P13: =SUM(P8:P12) -> 0 | Q13: =SUM(Q8:Q12) -> 0 | S13: =SUM(S8:S12) -> 0 | T13: =SUM(T8:T12) -> 0 | V13: =SUM(V8:V12) -> 0 | W13: =SUM(W8:W12) -> 0 | Y13: =SUM(Y8:Y12) -> 0 | Z13: =SUM(Z8:Z12) -> 0 | AB13: =SUM(AB8:AB12) -> 0 | AC13: =SUM(AC8:AC12) -> 0 | AE13: =SUM(AE8:AE12) -> 0 | AF13: 0
A15: A federally approved fringe benefit rate agreement, or a proposed rate supported and agreed upon by DOE for estimating purposes is required at the time of award negotiation if reimbursement for fringe benefits is requested. Please check (X) one of the options below and provide the requested information if not previously submitted.
A16: ______ A fringe benefit rate has been negotiated with, or approved by, a federal government agency. A copy of the latest rate agreement is/was included with the project application.* ______ There is not a current federally approved rate agreement negotiated and available.** *Unless the organization has submitted an indirect rate proposal which encompasses the fringe pool of costs, please provide the organization’s benefit package and/or a list of the components/elements that comprise the fringe pool and the cost or percentage of each component/element allocated to the labor costs identified in the Budget Justification. **When this option is checked, the entity preparing this form shall submit an indirect rate proposal in the format provided in the Sample Rate Proposal at https://www.energy.gov/eere/funding/downloads/sample-indirect-rate-proposal-and-profit-compliance-audit, or a format that provides the same level of information and which will support the rates being proposed for use in the performance of the proposed project.
A21: Additional Explanation (as necessary): Please use this box (or an attachment) to list the elements that comprise your fringe benefits and how they are applied to your base (e.g. Personnel) to arrive at your fringe benefit rate.

Sheet c. Travel
A1: Detailed Budget Justification
A2: c. Travel
A3: INSTRUCTIONS - PLEASE READ!!! 1. Identify Foreign and Domestic Travel as separate items. Examples of Purpose of Travel are subrecipient site visits, DOE meetings, project mgmt. meetings, etc. Examples of Basis for Estimating Costs are past trips, travel quotes, GSA rates, etc. 2. All listed travel must be necessary for performance of the Statement of Project Objectives. 3. Only travel that is directly associated with this award should be included as a direct travel cost to the award. 4. Federal travel regulations are contained within the applicable cost principles for all entity types. 5. Travel costs should remain consistent with travel costs incurred by an organization during normal business operations as a result of the organizations written travel policy. In absence of a written travel policy, organizations must follow the regulations prescribed by the General Services Administration. 6. Columns G, H, I, J, and K are total per trip per the total number of travelers. 7. The number of days is inclusive of day of departure and day of return. 8. Recipients should enter City and State (or City and Country for International travel) in the Depart from and Destination fields. 9. Each budget period is rounded to the nearest dollar.
A5: SOPO Task # | B5: Purpose of Travel | C5: Depart From | D5: Destination | E5: No. of Days | F5: No. of Travelers | G5: Lodging per Traveler | H5: Flight per Traveler | I5: Vehicle per Traveler | J5: Per Diem Per Traveler | K5: Cost per Trip | L5: Basis for Estimating Costs
B6: Domestic Travel | C6: Budget Period 1
A7: 1 | B7: EXAMPLE!!! Visit to PV manufacturer | E7: 2 | F7: 2 | G7: 250 | H7: 500 | I7: 100 | J7: 80 | K7: =SUM(G7:J7)*F7 -> 1860 | L7: Current GSA rates
K8: =SUM(G8:J8)*F8 -> 0
K9: =SUM(G9:J9)*F9 -> 0
K10: =SUM(G10:J10)*F10 -> 0
K11: 0
B12: International Travel
K13: =SUM(G13:J13)*F13 -> 0
A14: Budget Period 1 Total | K14: =SUM(K8:K13) -> 0
B15: Domestic Travel | C15: Budget Period 2
K16: =SUM(G16:J16)*F16 -> 0
K17: =SUM(G17:J17)*F17 -> 0
K18: =SUM(G18:J18)*F18 -> 0
K19: 0
B20: International Travel
K21: =SUM(G21:J21)*F21 -> 0
A22: Budget Period 2 Total | K22: =SUM(K16:K21) -> 0
B23: Domestic Travel | C23: Budget Period 3
K24: =SUM(G24:J24)*F24 -> 0
K25: =SUM(G25:J25)*F25 -> 0
K26: =SUM(G26:J26)*F26 -> 0
K27: 0
B28: International Travel
K29: =SUM(G29:J29)*F29 -> 0
A30: Budget Period 3 Total | K30: =SUM(K24:K29) -> 0
B31: Domestic Travel | C31: Budget Period 4
K32: =SUM(G32:J32)*F32 -> 0
K33: =SUM(G33:J33)*F33 -> 0
K34: =SUM(G34:J34)*F34 -> 0
K35: 0
B36: International Travel
K37: =SUM(G37:J37)*F37 -> 0
A38: Budget Period 4 Total | K38: =SUM(K32:K37) -> 0
B39: Domestic Travel | C39: Budget Period 5
K40: =SUM(G40:J40)*F40 -> 0
K41: =SUM(G41:J41)*F41 -> 0
K42: =SUM(G42:J42)*F42 -> 0
K43: 0
B44: International Travel
K45: =SUM(G45:J45)*F45 -> 0
A46: Budget Period 5 Total | K46: =SUM(K40:K45) -> 0
B47: Domestic Travel | C47: Budget Period 6
K48: =SUM(G48:J48)*F48 -> 0
K49: =SUM(G49:J49)*F49 -> 0
K50: =SUM(G50:J50)*F50 -> 0
K51: 0
B52: International Travel
K53: =SUM(G53:J53)*F53 -> 0
A54: Budget Period 6 Total | K54: =SUM(K48:K53) -> 0
B55: Domestic Travel | C55: Budget Period 7
K56: =SUM(G56:J56)*F56 -> 0
K57: =SUM(G57:J57)*F57 -> 0
K58: =SUM(G58:J58)*F58 -> 0
K59: 0
B60: International Travel
K61: =SUM(G61:J61)*F61 -> 0
A62: Budget Period 7 Total | K62: =SUM(K56:K61) -> 0
B63: Domestic Travel | C63: Budget Period 8
K64: =SUM(G64:J64)*F64 -> 0
K65: =SUM(G65:J65)*F65 -> 0
K66: =SUM(G66:J66)*F66 -> 0
K67: 0
B68: International Travel
K69: =SUM(G69:J69)*F69 -> 0
A70: Budget Period 8 Total | K70: =SUM(K64:K69) -> 0
B71: Domestic Travel | C71: Budget Period 9
K72: =SUM(G72:J72)*F72 -> 0
K73: =SUM(G73:J73)*F73 -> 0
K74: =SUM(G74:J74)*F74 -> 0
K75: 0
B76: International Travel
K77: =SUM(G77:J77)*F77 -> 0
A78: Budget Period 9 Total | K78: =SUM(K72:K77) -> 0
B79: Domestic Travel | C79: Budget Period 10
B80: peer review | K80: =SUM(G80:J80)*F80 -> 0
K81: =SUM(G81:J81)*F81 -> 0
K82: =SUM(G82:J82)*F82 -> 0
K83: 0
B84: International Travel
K85: =SUM(G85:J85)*F85 -> 0
A86: Budget Period 10 Total | K86: =SUM(K80:K85) -> 0
A89: TOTAL TRAVEL | K89: =K14+K22+K30+K38+K46+K54+K62+K70+K78+K86 -> 0
A91: Additional Explanation (as needed):

Sheet d. Equipment
A1: Detailed Budget Justification
A2: d. Equipment
A3: INSTRUCTIONS - PLEASE READ!!! 1. Equipment is generally defined as an item with an acquisition cost greater than $5,000 and a useful life expectancy of more than one year. Please refer to the applicable Federal regulations in 2 CFR 200 for specific equipment definitions and treatment. 2. List all equipment below, providing a basis of cost (e.g. contractor quotes, catalog prices, prior invoices, etc.). Briefly justify items as they apply to the Statement of Project Objectives. If it is existing equipment, provide logical support for the estimated value shown. 3. During award negotiations, provide a contractor quote for all equipment items over $50,000 in price. If the contractor quote is not an exact price match, provide an explanation in the additional explanation section below. If a contractor quote is not practical, such as for a piece of equipment that is purpose-built, first of its kind, or otherwise not available off the shelf, provide a detailed engineering estimate for how the cost estimate was derived. 4. Each budget period is rounded to the nearest dollar.
A5: SOPO Task # | B5: Equipment Item | C5: Qty | D5: Unit Cost | E5: Total Cost | F5: Basis of Cost | G5: Justification of need
A6: Budget Period 1
A7: 3,4,5 | B7: EXAMPLE!!! Thermal shock chamber | C7: 2 | D7: 70000 | E7: =C7*D7 -> 140000 | F7: Contractor Quote - Attached | G7: Reliability testing of PV modules- Task 4.3
E8: =C8*D8 -> 0
E9: =C9*D9 -> 0
E10: =C10*D10 -> 0
E11: =C11*D11 -> 0
E12: =C12*D12 -> 0
E13: =C13*D13 -> 0
A14: Budget Period 1 Total | E14: =SUM(E8:E13) -> 0
A15: Budget Period 2
E16: =C16*D16 -> 0
E17: 0
E18: 0
E19: 0
E20: 0
E21: 0
A22: Budget Period 2 Total | E22: =SUM(E16:E21) -> 0
A23: Budget Period 3
E24: =C24*D24 -> 0
E25: 0
E26: 0
E27: 0
E28: 0
E29: 0
A30: Budget Period 3 Total | E30: =SUM(E24:E29) -> 0
A31: Budget Period 4
E32: =C32*D32 -> 0
E33: 0
E34: 0
E35: 0
E36: 0
E37: 0
A38: Budget Period 4 Total | E38: =SUM(E32:E37) -> 0
A39: Budget Period 5
E40: =C40*D40 -> 0
E41: 0
E42: 0
E43: 0
E44: 0
E45: 0
A46: Budget Period 5 Total | E46: =SUM(E40:E45) -> 0
A47: Budget Period 6
E48: =C48*D48 -> 0
E49: 0
E50: 0
E51: 0
E52: 0
E53: 0
A54: Budget Period 6 Total | E54: =SUM(E48:E53) -> 0
A55: Budget Period 7
E56: =C56*D56 -> 0
E57: 0
E58: 0
E59: 0
E60: 0
E61: 0
A62: Budget Period 7 Total | E62: =SUM(E56:E61) -> 0
A63: Budget Period 8
E64: =C64*D64 -> 0
E65: 0
E66: 0
E67: 0
E68: 0
E69: 0
A70: Budget Period 8 Total | E70: =SUM(E64:E69) -> 0
A71: Budget Period 9
E72: =C72*D72 -> 0
E73: 0
E74: 0
E75: 0
E76: 0
E77: 0
A78: Budget Period 9 Total | E78: =SUM(E72:E77) -> 0
A79: Budget Period 10
E80: =C80*D80 -> 0
E81: 0
E82: 0
E83: 0
E84: 0
E85: 0
A86: Budget Period 10 Total | E86: =SUM(E80:E85) -> 0
A88: TOTAL EQUIPMENT | E88: =E14+E22+E30+E38+E46+E54+E62+E70+E78+E86 -> 0
A90: Additional Explanation (as needed):

Sheet e. Supplies
A1: Detailed Budget Justification
A2: e. Supplies
A3: INSTRUCTIONS - PLEASE READ!!! 1. Supplies are generally defined as an item with an acquisition cost of $5,000 or less and a useful life expectancy of less than one year. Supplies are generally consumed during the project performance. Please refer to the applicable Federal regulations in 2 CFR 200 for specific supplies definitions and treatment. 2. List all proposed supplies below, providing a basis of costs (e.g. contractor quotes, catalog prices, prior invoices, etc.). Briefly justify the need for the Supplies as they apply to the Statement of Project Objectives. Note that Supply items must be direct costs to the project at this budget category, and not duplicative of supply costs included in the indirect pool that is the basis of the indirect rate applied for this project. 3. Multiple supply items valued at $5,000 or less used to assemble an equipment item with a value greater than $5,000 with a useful life of more than one year should be included on the equipment tab. If supply items and costs are ambiguous in nature, contact your DOE representative for proper categorization. 4. Add rows as needed. If rows are added, formulas/calculations may need to be adjusted by the preparer. 5. Each budget period is rounded to the nearest dollar.
A5: SOPO Task # | B5: General Category of Supplies | C5: Qty | D5: Unit Cost | E5: Total Cost | F5: Basis of Cost | G5: Justification of need
A6: Budget Period 1
A7: 4,6 | B7: EXAMPLE!!! Wireless DAS components | C7: 10 | D7: 360 | E7: 3600 | F7: Catalog price | G7: For Alpha prototype - Task 2.4
E8: =C8*D8 -> 0
E9: 0
E10: 0
E11: 0
E12: 0
E13: 0
E14: 0
A15: Budget Period 1 Total | E15: =SUM(E8:E14) -> 0
A16: Budget Period 2
E17: =C17*D17 -> 0
E18: 0
E19: 0
E20: 0
E21: 0
E22: 0
E23: 0
E24: 0
A25: Budget Period 2 Total | E25: =SUM(E17:E24) -> 0
A26: Budget Period 3
E27: =C27*D27 -> 0
E28: 0
E29: 0
E30: 0
E31: 0
E32: 0
E33: 0
E34: 0
A35: Budget Period 3 Total | E35: =SUM(E27:E34) -> 0
A36: Budget Period 4
E37: =C37*D37 -> 0
E38: 0
E39: 0
E40: 0
E41: 0
E42: 0
E43: 0
E44: 0
A45: Budget Period 4 Total | E45: =SUM(E37:E44) -> 0
A46: Budget Period 5
E47: =C47*D47 -> 0
E48: 0
E49: 0
E50: 0
E51: 0
E52: 0
E53: 0
E54: 0
A55: Budget Period 5 Total | E55: =SUM(E47:E54) -> 0
A56: Budget Period 6
E57: =C57*D57 -> 0
E58: 0
E59: 0
E60: 0
E61: 0
E62: 0
E63: 0
E64: 0
A65: Budget Period 6 Total | E65: =SUM(E57:E64) -> 0
A66: Budget Period 7
E67: =C67*D67 -> 0
E68: 0
E69: 0
E70: 0
E71: 0
E72: 0
E73: 0
E74: 0
A75: Budget Period 7 Total | E75: =SUM(E67:E74) -> 0
A76: Budget Period 8
E77: =C77*D77 -> 0
E78: 0
E79: 0
E80: 0
E81: 0
E82: 0
E83: 0
E84: 0
A85: Budget Period 8 Total | E85: =SUM(E77:E84) -> 0
A86: Budget Period 9
E87: =C87*D87 -> 0
E88: 0
E89: 0
E90: 0
E91: 0
E92: 0
E93: 0
E94: 0
A95: Budget Period 9 Total | E95: =SUM(E87:E94) -> 0
A96: Budget Period 10
E97: =C97*D97 -> 0
E98: 0
E99: 0
E100: 0
E101: 0
E102: 0
E103: 0
E104: 0
A105: Budget Period 10 Total | E105: =SUM(E97:E104) -> 0
A107: TOTAL SUPPLIES | E107: =E35+E25+E15+E45+E55+E65+E75+E85+E95+E105 -> 0
A109: Additional Explanation (as needed):

Sheet f. Contractual
A1: Detailed Budget Justification
A2: f. Contractual
A3: INSTRUCTIONS - PLEASE READ!!! 1. The entity completing this form must provide all costs related to sub-recipients, contractors, and FFRDC partners in the applicable boxes below. 2. Sub-recipients (partners, sub-awardees): Subrecipients shall submit a Budget Justification describing all project costs and calculations when their total proposed budget exceeds either (1) $250,000 or (2) 25% of total award costs. These sub-recipient forms may be completed by either the sub-recipients themselves or by the preparer of this form. The budget totals on the sub-recipient's forms must match the sub-recipient entries below. A subrecipient is a legal entity to which a subaward is made, who has performance measured against whether the objectives of the Federal program are met, is responsible for programmatic decision making, must adhere to applicable Federal program compliance requirements, and uses the Federal funds to carry out a program of the organization. All characteristics may not be present and judgment must be used to determine subrecipient vs. vendor status. 3. Contractors (including contractors): List all contractors supplying commercial supplies or services used to support the project. For each Contractor cost with total project costs of $250,000 or more, a Contractor quote must be provided. A contractor is a legal entity contracted to provide goods and services within normal business operations, provides similar goods or services to many different purchasers, operates in a competitive environment, provides goods or services that are ancillary to the operation of the Federal program, and is not subject to compliance requirements of the Federal program. All characteristics may not be present and judgment must be used to determine subrecipient vs. contractor status. 4. Federal Funded Research and Development Centers (FFRDCs): FFRDCs must submit a signed Field Work Proposal during award application. The award recipient may allow the FFRDC to provide this information directly to DOE, however project costs must also be provided below. 5. Each budget period is rounded to the nearest dollar.
A5: SOPO Task # | B5: Sub-Recipient Name/Organization | C5: Sub-Recipient Unique Entity Identifier (UEI) | D5: Purpose and Basis of Cost | E5: Budget Period 1 | F5: Budget Period 2 | G5: Budget Period 3 | H5: Budget Period 4 | I5: Budget Period 5 | J5: Budget Period 6 | K5: Budget Period 7 | L5: Budget Period 8 | M5: Budget Period 9 | N5: Budget Period 10 | O5: Project Total
A6: 2,4 | B6: EXAMPLE!!! XYZ Corp. | D6: Partner to develop optimal lens for Gen 2 product. Cost estimate based on personnel hours. | E6: 48000 | F6: 32000 | G6: 16000 | O6: =SUM(E6:G6) -> 96000
O7: =SUM(E7:N7) -> 0
O8: 0
O9: 0
O10: 0
O11: 0
O12: 0
A13: Sub-total | E13: =SUM(E7:E12) -> 0 | F13: 0 | G13: 0 | H13: 0 | I13: 0 | J13: 0 | K13: 0 | L13: 0 | M13: 0 | N13: 0 | O13: 0
A15: SOPO Task # | B15: Contractor Name/Organization | D15: Purpose and Basis of Cost | E15: Budget Period 1 | F15: Budget Period 2 | G15: Budget Period 3 | H15: Budget Period 4 | I15: Budget Period 5 | J15: Budget Period 6 | K15: Budget Period 7 | L15: Budget Period 8 | M15: Budget Period 9 | N15: Budget Period 10 | O15: Project Total
A16: 6 | B16: EXAMPLE!!! ABC Corp. | D16: Contractor for developing robotics to perform lens inspection. Estimate provided by contractor. | E16: 32900 | F16: 86500 | O16: =SUM(E16:G16) -> 119400
O17: =SUM(E17:N17) -> 0
O18: =SUM(E18:N18) -> 0
O19: =SUM(E19:N19) -> 0
O20: =SUM(E20:N20) -> 0
O21: =SUM(E21:N21) -> 0
A22: Sub-total | E22: =SUM(E17:E21) -> 0 | F22: 0 | G22: 0 | H22: 0 | I22: 0 | J22: 0 | K22: 0 | L22: 0 | M22: 0 | N22: 0 | O22: 0
A24: SOPO Task # | B24: FFRDC Name/Organization | D24: Purpose and Basis of Cost | E24: Budget Period 1 | F24: Budget Period 2 | G24: Budget Period 3 | H24: Budget Period 4 | I24: Budget Period 5 | J24: Budget Period 6 | K24: Budget Period 7 | L24: Budget Period 8 | M24: Budget Period 9 | N24: Budget Period 10 | O24: Project Total
O25: =SUM(E25:N25) -> 0
O26: =SUM(E26:N26) -> 0
A27: Sub-total | E27: =SUM(E25:E26) -> 0 | F27: =SUM(F25:F26) -> 0 | G27: =SUM(G25:G26) -> 0 | H27: =SUM(H25:H26) -> 0 | I27: =SUM(I25:I26) -> 0 | J27: 0 | K27: 0 | L27: 0 | M27: 0 | N27: 0 | O27: =SUM(E27:N27) -> 0
A29: TOTAL CONTRACTUAL | E29: =E13+E22+E27 -> 0 | F29: 0 | G29: 0 | H29: 0 | I29: 0 | J29: 0 | K29: 0 | L29: 0 | M29: 0 | N29: 0 | O29: 0
A31: Additional Explanation (as needed):

Sheet g. Construction
A1: Detailed Budget Justification
A2: g. Construction
A3: PLEASE READ!!! 1. Construction, for the purpose of budgeting, is defined as all types of work done on a particular building, including erecting, altering, or remodeling. Construction conducted by the award recipient is entered on this page. Any construction work that is performed by a contractor or subrecipient should be entered under f. Contractual. 2. List all proposed construction below, providing a basis of cost such as engineering estimates, prior construction, etc., and briefly justify its need as it applies to the Statement of Project Objectives. 3. Each budget period is rounded to the nearest dollar.
A5: Overall description of construction activities: Example Only!!! - Build wind turbine platform
A7: SOPO Task # | B7: General Description | C7: Cost | D7: Basis of Cost | E7: Justification of need
A8: Budget Period 1
A9: 3 | B9: EXAMPLE ONLY!!! Three days of excavation for platform site | C9: 28000 | D9: Engineering estimate | E9: Site must be prepared for construction of platform.
A15: Budget Period 1 Total | C15: =SUM(C10:C14) -> 0
A16: Budget Period 2
A22: Budget Period 2 Total | C22: =SUM(C17:C21) -> 0
A23: Budget Period 3
A29: Budget Period 3 Total | C29: =SUM(C24:C28) -> 0
A30: Budget Period 4
A36: Budget Period 4 Total | C36: =SUM(C31:C35) -> 0
A37: Budget Period 5
A43: Budget Period 5 Total | C43: =SUM(C38:C42) -> 0
A44: Budget Period 6
A50: Budget Period 6 Total | C50: =SUM(C45:C49) -> 0
A51: Budget Period 7
A57: Budget Period 7 Total | C57: =SUM(C52:C56) -> 0
A58: Budget Period 8
A64: Budget Period 8 Total | C64: =SUM(C59:C63) -> 0
A65: Budget Period 9
A71: Budget Period 9 Total | C71: =SUM(C66:C70) -> 0
A72: Budget Period 10
A78: Budget Period 10 Total | C78: =SUM(C73:C77) -> 0
A80: TOTAL CONSTRUCTION | C80: =(C15+C22+C29+C36+C43+C50+C57+C64+C71+C78) -> 0
A82: Additional Explanation (as needed):

Sheet h. Other
A1: Detailed Budget Justification
A2: h. Other Direct Costs
A3: INSTRUCTIONS - PLEASE READ!!! 1. Other direct costs are direct cost items required for the project which do not fit clearly into other categories. These direct costs must not be included in the indirect costs (for which the indirect rate is being applied for this project). Examples are: tuition, printing costs, etc. which can be directly charged to the project and are not duplicated in indirect costs (overhead costs). 2. Basis of cost are items such as vendor quotes, prior purchases of similar or like items, published price list, etc. 3. Each budget period is rounded to the nearest dollar.
A5: SOPO Task # | B5: General Description and SOPO Task # | C5: Cost | D5: Basis of Cost | E5: Justification of need
A6: Budget Period 1
A7: 5 | B7: EXAMPLE!!! Grad student tuition - tasks 1-3 | C7: 16000 | D7: Established UCD costs | E7: Support of graduate students working on project
A14: Budget Period 1 Total | C14: =SUM(C8:C13) -> 0
B15: Budget Period 2
A22: Budget Period 2 Total | C22: =SUM(C16:C21) -> 0
B23: Budget Period 3
A30: Budget Period 3 Total | C30: =SUM(C24:C29) -> 0
B31: Budget Period 4
A38: Budget Period 4 Total | C38: =SUM(C32:C37) -> 0
B39: Budget Period 5
A46: Budget Period 5 Total | C46: =SUM(C40:C45) -> 0
A47: Budget Period 6
A54: Budget Period 6 Total | C54: =SUM(C48:C53) -> 0
B55: Budget Period 7
A62: Budget Period 7 Total | C62: =SUM(C56:C61) -> 0
B63: Budget Period 8
A70: Budget Period 8 Total | C70: =SUM(C64:C69) -> 0
B71: Budget Period 9
A78: Budget Period 9 Total | C78: =SUM(C72:C77) -> 0
B79: Budget Period 10
A86: Budget Period 10 Total | C86: =SUM(C80:C85) -> 0
A88: TOTAL OTHER DIRECT COSTS | C88: =C30+C22+C14+C38+C46+C54+C62+C70+C78+C86 -> 0
A90: Additional Explanation (as needed):

Sheet i. Indirect
A1: Detailed Budget Justification
A2: i. Indirect Costs
A3: INSTRUCTIONS - PLEASE READ!!! 1. Fill out the table below to indicate how your indirect costs are calculated. Use the box below to provide additional explanation regarding your indirect rate calculation. 2. The rates and how they are applied should not be averaged to get one indirect cost percentage. Complex calculations or rates that do not do not correspond to the below categories should be described/provided in the Additional Explanation section below. If questions exist, consult with your DOE contact before filling out this section. 3. The indirect rate should be applied to both the Federal Share and Recipient Cost Share. 4. NOTE: A Recipient who elects to employ the 10% de minimis Indirect Cost rate cannot claim resulting costs as a Cost Share contribution, nor can the Recipient claim "unrecovered indirect costs" as a Cost Share contribution. Neither of these costs can be reflected as actual indirect cost rates realized by the organization, and therefore are not verifiable in the Recipient records as required by Federal Regulation (§200.306(b)(1)). 5. Each budget period is rounded to the nearest dollar.
B5: Budget Period 1 | C5: Budget Period 2 | D5: Budget Period 3 | E5: Budget Period 4 | F5: Budget Period 5 | G5: Budget Period 6 | H5: Budget Period 7 | I5: Budget Period 8 | J5: Budget Period 9 | K5: Budget Period 10 | L5: Total | M5: Explanation of BASE
A6: Provide ONLY Applicable Rates:
A7: Overhead Rate | B7: 0 | C7: 0 | D7: 0 | E7: 0 | F7: 0 | G7: 0 | H7: 0 | I7: 0 | J7: 0 | K7: 0 | M7: Example: Labor + Fringe
A8: General & Administrative (G&A) | B8: 0 | C8: 0 | D8: 0 | E8: 0 | F8: 0 | G8: 0 | H8: 0 | I8: 0 | J8: 0 | K8: 0 | M8: Example: Total Cost Input
A9: FCCM Rate, if applicable | B9: 0 | C9: 0 | D9: 0 | E9: 0 | F9: 0 | G9: 0 | H9: 0 | I9: 0 | J9: 0 | K9: 0
A10: OTHER Indirect Rate | B10: 0 | C10: 0 | D10: 0 | E10: 0 | F10: 0 | G10: 0 | H10: 0 | I10: 0 | J10: 0 | K10: 0
A11: Indirect Costs (As Applicable):
A12: Overhead Costs | L12: =SUM(B12:K12) -> 0
A13: G&A Costs | L13: =SUM(B13:K13) -> 0
A14: FCCM Costs, if applicable | L14: =SUM(B14:K14) -> 0
A15: OTHER Indirect Costs | L15: =SUM(B15:K15) -> 0
A16: Total Indirect Costs Requested: | B16: =SUM(B12:B15) -> 0 | C16: =SUM(C12:C15) -> 0 | D16: =SUM(D12:D15) -> 0 | E16: =SUM(E12:E15) -> 0 | F16: =SUM(F12:F15) -> 0 | G16: 0 | H16: 0 | I16: 0 | J16: 0 | K16: 0 | L16: =SUM(B16:K16) -> 0
A18: A federally approved indirect rate agreement, or rate proposed (supported and agreed upon by DOE for estimating purposes) is required if reimbursement of indirect costs is requested. Please check (X) one of the options below and provide the requested information if it has not already been provided as requested, or has changed.
A19: ______ An indirect rate has been approved or negotiated with a federal government agency. A copy of the latest rate agreement is included with this application and will be provided electronically to the Contracting Officer for this project. ______ The organization does not have a current, federally approved indirect cost rate agreement and has provided an indirect rate proposal in support of the proposed costs. ______ This organization has elected to apply a 10% de minimis rate in accordance with 2 CFR 200.414(f).
A21: Provide an explanation of how your indirect cost rate was applied.
A23: Additional Explanation (as needed): *IMPORTANT: Please use this box (or an attachment) to further explain how your total indirect costs were calculated. If the total indirect costs are a cumulative amount of more than one calculation or rate application, the explanation and calculations should identify all rates used, along with the base they were applied to (and how the base was derived), and a total for each (along with grand total).

Sheet j. Cost Share
A1: Detailed Budget Justification
A2: Cost Share
A3: PLEASE READ!!! 1. A detailed presentation of the cash or cash value of all cost share proposed must be provided in the table below. All items in the chart below must be identified within the applicable cost category tabs a. through i. in addition to the detailed presentation of the cash or cash value of all cost share proposed provided in the table below. Identify the source organization & amount of each cost share item proposed in the award. 2. Cash Cost Share - encompasses all contributions to the project made by the recipient, subrecipient, or third party (an entity that does not have a role in performing the scope of work) for costs incurred and paid for during the project. This includes when an organization pays for personnel, supplies, equipment, etc. for their own company with organizational resources. If the item or service is reimbursed for, it is cash cost share. All cost share items must be necessary to the performance of the project. Contractors may not provide cost share. Any partial donation of goods or services is considered a discount and is not allowable. 3. In Kind Cost Share - encompasses all contributions to the project made by the recipient, subrecipient, or third party (an entity that does not have a role in performing the scope of work) where a value of the contribution can be readily determined, verified and justified but where no actual cash is transacted in securing the good or service comprising the contribution. In Kind cost share items include volunteer personnel hours, the donation of space or use of equipment, etc. The cash value and calculations thereof for all In Kind cost share items must be justified and explained in the Cost Share Item section below. All cost share items must be necessary to the performance of the project. If questions exist, consult your DOE contact before filling out In Kind cost share in this section. Contractors may not provide cost share. Any partial donation of goods or services is considered a discount and is not allowable. 4. Funds from other Federal sources MAY NOT be counted as cost share. This prohibition includes FFRDC sub-recipients. Non-Federal sources include any source not originally derived from Federal funds. Cost sharing commitment letters from subrecipients and third parties must be provided with the original application. 5. Fee or profit, including foregone fee or profit, are not allowable as project costs (including cost share) under any resulting award. The project may only incur those costs that are allowable and allocable to the project (including cost share) as determined in accordance with the applicable cost principles prescribed in FAR Part 31 for For-Profit entities and 2 CFR Part 200 Subpart E - Cost Principles for all other non-federal entities. 6. NOTE: A Recipient who elects to employ the 10% de minimis Indirect Cost rate cannot claim the resulting indirect costs as a Cost Share contribution. 7. NOTE: A Recipient cannot claim "unrecovered indirect costs" as a Cost Share contribution, without prior approval. 8. Each budget period is rounded to the nearest dollar.
A5: Organization/Source | B5: Type (Cash or In Kind) | C5: Cost Share Item | D5: Budget Period 1 | E5: Budget Period 2 | F5: Budget Period 3 | G5: Budget Period 4 | H5: Budget Period 5 | I5: Budget Period 6 | J5: Budget Period 7 | K5: Budget Period 8 | L5: Budget Period 9 | M5: Budget Period 10 | N5: Total Project Cost Share
A6: ABC Company EXAMPLE!!! | B6: Cash | C6: Project partner ABC Company will provide 20 PV modules for product development at the price of $680 per module | D6: 13600 | N6: =SUM(D6:F6) -> 13600
N7: =SUM(D7:M7) -> 0
N8: 0
N9: 0
N10: 0
N11: 0
N12: 0
N13: 0
N14: 0
N15: 0
N16: 0
A17: TOTAL COST SHARE | D17: =SUM(D7:D16) -> 0 | E17: 0 | F17: 0 | G17: 0 | H17: 0 | I17: 0 | J17: 0 | K17: 0 | L17: 0 | M17: 0 | N17: 0
C19: Cost Share Percentage per Budget Period | D19: =IF(D17>0,D17/'Instructions and Summary'!B39,0) -> 0 | E19: =IF(E17>0,E17/'Instructions and Summary'!C39,0) -> 0 | F19: =IF(F17>0,F17/'Instructions and Summary'!D39,0) -> 0 | G19: =IF(G17>0,G17/'Instructions and Summary'!E39,0) -> 0 | H19: =IF(H17>0,H17/'Instructions and Summary'!F39,0) -> 0 | I19: =IF(I17>0,I17/'Instructions and Summary'!G39,0) -> 0 | J19: =IF(J17>0,J17/'Instructions and Summary'!H39,0) -> 0 | K19: =IF(K17>0,K17/'Instructions and Summary'!I39,0) -> 0 | L19: =IF(L17>0,L17/'Instructions and Summary'!J39,0) -> 0 | M19: =IF(M17>0,M17/'Instructions and Summary'!K39,0) -> 0
G21: Total Project Cost: | I21: ='Instructions and Summary'!L39 -> 0 | K21: Cost Share Percent of Award: | N21: =IF(I21>0,N17/I21,0) -> 0
A23: Additional Explanation (as needed):

Sheet SF-424A (hidden)
A1: Applicant Name: | E1: Award Number:
A2: Budget Information - Non Construction Programs
A3: OMB Approval No. 0348-0044
A4: Section A - Budget Summary
B5: Grant Program Function or Activity | C5: Catalog of Federal Domestic Assistance Number | D5: Estimated Unobligated Funds | F5: New or Revised Budget
D6: Federal | E6: Non-Federal | F6: Federal | G6: Non-Federal | H6: Total
B7: (a) | C7: (b) | D7: (c ) | E7: (d) | F7: (e) | G7: (f) | H7: (g)
A8: 1. | B8: Budget period 1 | F8: =D26-G8 ->  | G8: ='j. Cost Share'!D17 -> 0 | H8: =SUM(D8:G8) -> 
A9: 2. | B9: Budget period 2 | F9: =E26-G9 ->  | G9: ='j. Cost Share'!E17 -> 0 | H9: =SUM(D9:G9) -> 
A10: 3. | B10: Budget period 3 | F10: =F26-'j. Cost Share'!F17 ->  | G10: ='j. Cost Share'!F17 -> 0 | H10: =SUM(D10:G10) -> 
A11: 4. | H11: =SUM(D11:G11) -> 0
A12: 5. | B12: Totals | D12: =SUM(D8:D11) -> 0 | E12: =SUM(E8:E11) -> 0 | F12: =SUM(F8:F11) ->  | G12: =SUM(G8:G11) -> 0 | H12: =SUM(H8:H11) -> 
A13: Section B - Budget Categories
A14: 6. | B14: Object Class Categories | D14: Grant Program, Function or Activity | H14: Total (5)
D15: Budget period 1 | E15: Budget period 2 | F15: Budget period 3 | G15: (4)
B16: a. Personnel | D16: ='Instructions and Summary'!B25 -> 0 | E16: ='Instructions and Summary'!C25 -> 0 | F16: ='Instructions and Summary'!D25 -> 0 | H16: =SUM(D16:G16) -> 0
B17: b. Fringe Benefits | D17: ='Instructions and Summary'!B26 -> 0 | E17: ='Instructions and Summary'!C26 -> 0 | F17: ='Instructions and Summary'!D26 -> 0 | H17: 0
B18: c. Travel | D18: ='Instructions and Summary'!B27 -> 0 | E18: ='Instructions and Summary'!C27 -> 0 | F18: ='Instructions and Summary'!D27 -> 0 | H18: 0
B19: d. Equipment | D19: ='Instructions and Summary'!B28 -> 0 | E19: ='Instructions and Summary'!C28 -> 0 | F19: ='Instructions and Summary'!D28 -> 0 | H19: 0
B20: e. Supplies | D20: ='Instructions and Summary'!B29 -> 0 | E20: ='Instructions and Summary'!C29 -> 0 | F20: ='Instructions and Summary'!D29 -> 0 | H20: 0
B21: f. Contractual | D21: ='Instructions and Summary'!#REF! ->  | E21: ='Instructions and Summary'!#REF! ->  | F21: ='Instructions and Summary'!#REF! -> 
B22: g. Construction | D22: ='Instructions and Summary'!B35 -> 0 | E22: ='Instructions and Summary'!C35 -> 0 | F22: ='Instructions and Summary'!D35 -> 0 | H22: 0
B23: h. Other | D23: ='Instructions and Summary'!B36 -> 0 | E23: ='Instructions and Summary'!C36 -> 0 | F23: ='Instructions and Summary'!D36 -> 0 | H23: 0
B24: i. Total Direct Charges (sum of 6a-6h) | D24: =SUM(D16:D23) ->  | E24: =SUM(E16:E23) ->  | F24: =SUM(F16:F23) ->  | G24: =SUM(G16:G23) -> 0
B25: j. Indirect Charges | D25: ='Instructions and Summary'!B38 -> 0 | E25: ='Instructions and Summary'!C38 -> 0 | F25: ='Instructions and Summary'!D38 -> 0 | H25: 0
B26: k. Totals (sum of 6i-6j) | D26: =SUM(D24:D25) ->  | E26: =SUM(E24:E25) ->  | F26: =SUM(F24:F25) ->  | G26: =SUM(G24:G25) -> 0 | H26: =SUM(H24:H25) -> 
A28: 7. | B28: Program Income | H28: =SUM(D28:G28) -> 0
H30: SF-424A (Rev. 4-92)
A31: Previous Edition Usable | G31: Prescribed by OMB Circular A-102
A32: Authorized for Local Reproduction
A34: Section C - Non-Federal Resources
B35: (a) Grant Program | E35: (b) Applicant | F35: (c ) State | G35: (d) Other Sources | H35: (e) Totals
A36: 8. | B36: Budget period 1 | H36: =SUM(E36:G36) -> 0
A37: 9. | B37: Budget period 2 | H37: =SUM(E37:G37) -> 0
A38: 10. | B38: Budget period 3 | H38: =SUM(E38:G38) -> 0
A39: 11. | H39: =SUM(E39:G39) -> 0
A40: 12. | B40: Total (sum of lines 8 - 11) | E40: =SUM(E36:E39) -> 0 | F40: =SUM(F36:F39) -> 0 | G40: =SUM(G36:G39) -> 0 | H40: =SUM(H36:H39) -> 0
A41: Section D - Forecasted Cash Needs
D42: Total for 1st Year | E42: 1st Quarter | F42: 2nd Quarter | G42: 3rd Quarter | H42: 4th quarter
A43: 13. | B43: Federal | D43: =SUM(E43:H43) -> 0
A44: 14. | B44: Non-Federal | D44: =SUM(E44:H44) -> 0
A45: 15. | B45: Total (sum of lines 13 and 14) | D45: =SUM(D43:D44) -> 0 | E45: =SUM(E43:E44) -> 0 | F45: =SUM(F43:F44) -> 0 | G45: =SUM(G43:G44) -> 0 | H45: =SUM(H43:H44) -> 0
A46: Section E - Budget Estimates of Federal Funds Needed for Balance of the Project
A47: (a) Grant Program | E47: Future Funding Periods (Years)
E48: Budget period 1 | F48: Budget period 2 | G48: Budget period 3
A49: 16.
A50: 17.
A51: 18.
A52: 19.
A53: 20. | B53: Total (sum of lines 16-19) | E53: =SUM(E49:E52) -> 0 | F53: =SUM(F49:F52) -> 0 | G53: =SUM(G49:G52) -> 0 | H53: =SUM(H49:H52) -> 0
A54: Section F - Other Budget Information
A55: 21. Direct Charges | E55: 22. Indirect Charges
A57: 23. Remarks
H61: SF-424A (Rev. 4-92)
A62: Previous Edition Usable | H62: Prescribed by OMB Circular A-102
C63: Authorized for Local Reproduction

Sheet SF-424A Cost Categories
A1: Applicant Name: | C1: ='Instructions and Summary'!B4 -> 0 | E1: Award Number: | F1: ='Instructions and Summary'!B3 -> 0
A2: Budget Information - Non Construction Programs
A4: Section A - Budget Summary
B5: Grant Program Function or Activity | C5: Catalog of Federal Domestic Assistance Number | D5: Estimated Unobligated Funds | F5: New or Revised Budget
D6: Federal | E6: Non-Federal | F6: Federal | G6: Non-Federal | N6: Total
B7: (a) | C7: (b) | D7: (c) | E7: (d) | F7: (e) | G7: (f) | N7: (g)
A8: 1. | B8: Budget Period 1 | F8: ='Instructions and Summary'!C12 -> 0 | G8: ='j. Cost Share'!D17 -> 0 | N8: =ROUND(SUM(D8:G8),0) -> 0
A9: 2. | B9: Budget Period 2 | F9: ='Instructions and Summary'!C13 -> 0 | G9: ='j. Cost Share'!E17 -> 0 | N9: =ROUND(SUM(D9:G9),0) -> 0
A10: 3. | B10: Budget Period 3 | F10: ='Instructions and Summary'!C14 -> 0 | G10: ='j. Cost Share'!F17 -> 0 | N10: =ROUND(SUM(D10:G10),0) -> 0
A11: 4. | B11: Budget Period 4 | F11: ='Instructions and Summary'!C15 -> 0 | G11: ='j. Cost Share'!G17 -> 0 | N11: =ROUND(SUM(D11:G11),0) -> 0
A12: 5 | B12: Budget Period 5 | F12: ='Instructions and Summary'!C16 -> 0 | G12: ='j. Cost Share'!H17 -> 0 | N12: =ROUND(SUM(D12:G12),0) -> 0
A13: 6 | B13: Budget Period 6 | F13: ='Instructions and Summary'!C17 -> 0 | G13: ='j. Cost Share'!I17 -> 0 | N13: 0
A14: 7 | B14: Budget Period 7 | F14: ='Instructions and Summary'!C18 -> 0 | G14: ='j. Cost Share'!J17 -> 0 | N14: 0
A15: 8 | B15: Budget Period 8 | F15: ='Instructions and Summary'!C19 -> 0 | G15: ='j. Cost Share'!K17 -> 0 | N15: 0
A16: 9 | B16: Budget Period 9 | F16: ='Instructions and Summary'!C20 -> 0 | G16: ='j. Cost Share'!L17 -> 0 | N16: 0
A17: 10 | B17: Budget Period 10 | F17: ='Instructions and Summary'!C21 -> 0 | G17: ='j. Cost Share'!M17 -> 0 | N17: 0
A18: 11. | B18: Totals | F18: =ROUND(SUM(F8:F17),0) -> 0 | G18: =ROUND(SUM(G8:G17),0) -> 0 | N18: =ROUND(SUM(N8:N17),0) -> 0
A19: Section B - Budget Categories
A20: 12 | B20: Object Class Categories | D20: Grant Program, Function or Activity | N20: Total (5)
D21: Budget Period 1 | E21: Budget Period 2 | F21: Budget Period 3 | G21: Budget Period 4 | H21: Budget Period 5 | I21: Budget Period 6 | J21: Budget Period 7 | K21: Budget Period 8 | L21: Budget Period 9 | M21: Budget Period 10
B22: a. Personnel | D22: ='a. Personnel'!E34 -> 0 | E22: ='a. Personnel'!H34 -> 0 | F22: ='a. Personnel'!K34 -> 0 | G22: ='a. Personnel'!N34 -> 0 | H22: ='a. Personnel'!Q34 -> 0 | I22: ='a. Personnel'!T34 -> 0 | J22: ='a. Personnel'!W34 -> 0 | K22: ='a. Personnel'!Z34 -> 0 | L22: ='a. Personnel'!AC34 -> 0 | M22: ='a. Personnel'!AF34 -> 0 | N22: =ROUND(SUM(D22:M22),0) -> 0
B23: b. Fringe Benefits | D23: ='b. Fringe'!D13 -> 0 | E23: ='b. Fringe'!G13 -> 0 | F23: ='b. Fringe'!J13 -> 0 | G23: ='b. Fringe'!M13 -> 0 | H23: ='b. Fringe'!P13 -> 0 | I23: ='b. Fringe'!S13 -> 0 | J23: ='b. Fringe'!V13 -> 0 | K23: ='b. Fringe'!Y13 -> 0 | L23: ='b. Fringe'!AB13 -> 0 | M23: ='b. Fringe'!AE13 -> 0 | N23: 0
B24: c. Travel | D24: ='c. Travel'!K14 -> 0 | E24: ='c. Travel'!K22 -> 0 | F24: ='c. Travel'!K30 -> 0 | G24: ='c. Travel'!K38 -> 0 | H24: ='c. Travel'!K46 -> 0 | I24: ='c. Travel'!K54 -> 0 | J24: ='c. Travel'!K62 -> 0 | K24: ='c. Travel'!K70 -> 0 | L24: ='c. Travel'!K78 -> 0 | M24: ='c. Travel'!K86 -> 0 | N24: 0
B25: d. Equipment | D25: ='d. Equipment'!E14 -> 0 | E25: ='d. Equipment'!E22 -> 0 | F25: ='d. Equipment'!E30 -> 0 | G25: ='d. Equipment'!E38 -> 0 | H25: ='d. Equipment'!E46 -> 0 | I25: ='d. Equipment'!E54 -> 0 | J25: ='d. Equipment'!E62 -> 0 | K25: ='d. Equipment'!E70 -> 0 | L25: ='d. Equipment'!E78 -> 0 | M25: ='d. Equipment'!E86 -> 0 | N25: 0
B26: e. Supplies | D26: ='e. Supplies'!E15 -> 0 | E26: ='e. Supplies'!E25 -> 0 | F26: ='e. Supplies'!E35 -> 0 | G26: ='e. Supplies'!E45 -> 0 | H26: ='e. Supplies'!E55 -> 0 | I26: ='e. Supplies'!E65 -> 0 | J26: ='e. Supplies'!E75 -> 0 | K26: ='e. Supplies'!E85 -> 0 | L26: ='e. Supplies'!E95 -> 0 | M26: ='e. Supplies'!E105 -> 0 | N26: 0
B27: f. Contractual | D27: ='f. Contractual'!E29 -> 0 | E27: ='f. Contractual'!F29 -> 0 | F27: ='f. Contractual'!G29 -> 0 | G27: ='f. Contractual'!H29 -> 0 | H27: ='f. Contractual'!I29 -> 0 | I27: ='f. Contractual'!J29 -> 0 | J27: ='f. Contractual'!K29 -> 0 | K27: ='f. Contractual'!L29 -> 0 | L27: ='f. Contractual'!M29 -> 0 | M27: ='f. Contractual'!N29 -> 0 | N27: 0
B28: g. Construction | D28: ='g. Construction'!C15 -> 0 | E28: ='g. Construction'!C22 -> 0 | F28: ='g. Construction'!C29 -> 0 | G28: ='g. Construction'!C36 -> 0 | H28: ='g. Construction'!C43 -> 0 | I28: ='g. Construction'!C50 -> 0 | J28: ='g. Construction'!C57 -> 0 | K28: ='g. Construction'!C64 -> 0 | L28: ='g. Construction'!C71 -> 0 | M28: ='g. Construction'!C78 -> 0 | N28: 0
B29: h. Other | D29: ='h. Other'!C14 -> 0 | E29: ='h. Other'!C22 -> 0 | F29: ='h. Other'!C30 -> 0 | G29: ='h. Other'!C38 -> 0 | H29: ='h. Other'!C46 -> 0 | I29: ='h. Other'!C54 -> 0 | J29: ='h. Other'!C62 -> 0 | K29: ='h. Other'!C70 -> 0 | L29: ='h. Other'!C78 -> 0 | M29: ='h. Other'!C86 -> 0 | N29: 0
B30: i. Total Direct Charges (sum of 12a-12h) | D30: =SUM(D22:D29) -> 0 | E30: =SUM(E22:E29) -> 0 | F30: =SUM(F22:F29) -> 0 | G30: =SUM(G22:G29) -> 0 | H30: =SUM(H22:H29) -> 0 | I30: 0 | J30: 0 | K30: 0 | L30: 0 | M30: 0 | N30: 0
B31: j. Indirect Charges | D31: ='i. Indirect'!B16 -> 0 | E31: ='i. Indirect'!C16 -> 0 | F31: ='i. Indirect'!D16 -> 0 | G31: ='i. Indirect'!E16 -> 0 | H31: ='i. Indirect'!F16 -> 0 | I31: ='i. Indirect'!G16 -> 0 | J31: ='i. Indirect'!H16 -> 0 | K31: ='i. Indirect'!I16 -> 0 | L31: ='i. Indirect'!J16 -> 0 | M31: ='i. Indirect'!K16 -> 0 | N31: 0
B32: k. Totals (sum of 12i-12j) | D32: =ROUND(SUM(D30:D31),0) -> 0 | E32: 0 | F32: 0 | G32: 0 | H32: 0 | I32: 0 | J32: 0 | K32: 0 | L32: 0 | M32: 0 | N32: 0
A34: 13 | B34: Program Income | N34: =ROUND(SUM(D34:G34),0) -> 0

Sheet SF-424A Minus FFRDC
A1: Applicant Name: | C1: ='Instructions and Summary'!B4 -> 0 | E1: Award Number: | F1: ='Instructions and Summary'!B3 -> 0
A2: Budget Information - Non Construction Programs
A4: Section A - Budget Summary
B5: Grant Program Function or Activity | C5: Catalog of Federal Domestic Assistance Number | D5: Estimated Unobligated Funds | F5: New or Revised Budget
D6: Federal | E6: Non-Federal | F6: Federal | G6: Non-Federal | N6: Total
B7: (a) | C7: (b) | D7: (c) | E7: (d) | F7: (e) | G7: (f) | N7: (g)
A8: 1. | B8: Budget Period 1 | F8: ='Instructions and Summary'!C12-'Instructions and Summary'!B33 -> 0 | G8: ='j. Cost Share'!D17 -> 0 | N8: =ROUND(SUM(D8:G8),0) -> 0
A9: 2. | B9: Budget Period 2 | F9: ='Instructions and Summary'!C13-'Instructions and Summary'!C33 -> 0 | G9: ='j. Cost Share'!E17 -> 0 | N9: =ROUND(SUM(D9:G9),0) -> 0
A10: 3. | B10: Budget Period 3 | F10: ='Instructions and Summary'!C14-'Instructions and Summary'!D33 -> 0 | G10: ='j. Cost Share'!F17 -> 0 | N10: 0
A11: 4. | B11: Budget Period 4 | F11: ='Instructions and Summary'!C15-'Instructions and Summary'!E33 -> 0 | G11: ='j. Cost Share'!G17 -> 0 | N11: 0
A12: 5 | B12: Budget Period 5 | F12: ='Instructions and Summary'!C16-'Instructions and Summary'!F33 -> 0 | G12: ='j. Cost Share'!H17 -> 0 | N12: 0
A13: 6 | B13: Budget Period 6 | F13: ='Instructions and Summary'!C17-'Instructions and Summary'!G33 -> 0 | G13: ='j. Cost Share'!I17 -> 0 | N13: 0
A14: 7 | B14: Budget Period 7 | F14: ='Instructions and Summary'!C18-'Instructions and Summary'!H33 -> 0 | G14: ='j. Cost Share'!J17 -> 0 | N14: 0
A15: 8 | B15: Budget Period 8 | F15: ='Instructions and Summary'!C19-'Instructions and Summary'!I33 -> 0 | G15: ='j. Cost Share'!K17 -> 0 | N15: 0
A16: 9 | B16: Budget Period 9 | F16: ='Instructions and Summary'!C20-'Instructions and Summary'!J33 -> 0 | G16: ='j. Cost Share'!L17 -> 0 | N16: 0
A17: 10 | B17: Budget Period 10 | F17: ='Instructions and Summary'!C21-'Instructions and Summary'!K33 -> 0 | G17: ='j. Cost Share'!M17 -> 0 | N17: =ROUND(SUM(D17:G17),0) -> 0
A18: 11 | B18: Totals | F18: =ROUND(SUM(F8:F17),0) -> 0 | G18: =ROUND(SUM(G8:G17),0) -> 0 | N18: =ROUND(SUM(N8:N17),0) -> 0
A19: Section B - Budget Categories
A20: 12 | B20: Object Class Categories | D20: Grant Program, Function or Activity | N20: Total (5)
D21: Budget Period 1 | E21: Budget Period 2 | F21: Budget Period 3 | G21: Budget Period 4 | H21: Budget Period 5 | I21: Budget Period 6 | J21: Budget Period 7 | K21: Budget Period 8 | L21: Budget Period 9 | M21: Budget Period 10
B22: a. Personnel | D22: ='a. Personnel'!E34 -> 0 | E22: ='a. Personnel'!H34 -> 0 | F22: ='a. Personnel'!K34 -> 0 | G22: ='a. Personnel'!N34 -> 0 | H22: ='a. Personnel'!Q34 -> 0 | I22: ='a. Personnel'!T34 -> 0 | J22: ='a. Personnel'!W34 -> 0 | K22: ='a. Personnel'!Z34 -> 0 | L22: ='a. Personnel'!AC34 -> 0 | M22: ='a. Personnel'!AF34 -> 0 | N22: =ROUND(SUM(D22:M22),0) -> 0
B23: b. Fringe Benefits | D23: ='b. Fringe'!D13 -> 0 | E23: ='b. Fringe'!G13 -> 0 | F23: ='b. Fringe'!J13 -> 0 | G23: ='b. Fringe'!M13 -> 0 | H23: ='b. Fringe'!P13 -> 0 | I23: ='b. Fringe'!S13 -> 0 | J23: ='b. Fringe'!V13 -> 0 | K23: ='b. Fringe'!Y13 -> 0 | L23: ='b. Fringe'!AB13 -> 0 | M23: ='b. Fringe'!AE13 -> 0 | N23: 0
B24: c. Travel | D24: ='c. Travel'!K14 -> 0 | E24: ='c. Travel'!K22 -> 0 | F24: ='c. Travel'!K30 -> 0 | G24: ='c. Travel'!K38 -> 0 | H24: ='c. Travel'!K46 -> 0 | I24: ='c. Travel'!K54 -> 0 | J24: ='c. Travel'!K62 -> 0 | K24: ='c. Travel'!K70 -> 0 | L24: ='c. Travel'!K78 -> 0 | M24: ='c. Travel'!K86 -> 0 | N24: 0
B25: d. Equipment | D25: ='d. Equipment'!E14 -> 0 | E25: ='d. Equipment'!E22 -> 0 | F25: ='d. Equipment'!E30 -> 0 | G25: ='d. Equipment'!E38 -> 0 | H25: ='d. Equipment'!E46 -> 0 | I25: ='d. Equipment'!E54 -> 0 | J25: ='d. Equipment'!E62 -> 0 | K25: ='d. Equipment'!E70 -> 0 | L25: ='d. Equipment'!E78 -> 0 | M25: ='d. Equipment'!E86 -> 0 | N25: 0
B26: e. Supplies | D26: ='e. Supplies'!E15 -> 0 | E26: ='e. Supplies'!E25 -> 0 | F26: ='e. Supplies'!E35 -> 0 | G26: ='e. Supplies'!E45 -> 0 | H26: ='e. Supplies'!E55 -> 0 | I26: ='e. Supplies'!E65 -> 0 | J26: ='e. Supplies'!E75 -> 0 | K26: ='e. Supplies'!E85 -> 0 | L26: ='e. Supplies'!E95 -> 0 | M26: ='e. Supplies'!E105 -> 0 | N26: 0
B27: f. Contractual | D27: ='f. Contractual'!E29-'f. Contractual'!E27 -> 0 | E27: ='f. Contractual'!F29-'f. Contractual'!F27 -> 0 | F27: ='f. Contractual'!G29-'f. Contractual'!G27 -> 0 | G27: ='f. Contractual'!H29-'f. Contractual'!H27 -> 0 | H27: ='f. Contractual'!I29-'f. Contractual'!I27 -> 0 | I27: ='f. Contractual'!J29-'f. Contractual'!J27 -> 0 | J27: ='f. Contractual'!K29-'f. Contractual'!K27 -> 0 | K27: ='f. Contractual'!L29-'f. Contractual'!L27 -> 0 | L27: ='f. Contractual'!M29-'f. Contractual'!M27 -> 0 | M27: ='f. Contractual'!N29-'f. Contractual'!N27 -> 0 | N27: 0
B28: g. Construction | D28: ='g. Construction'!C15 -> 0 | E28: ='g. Construction'!C22 -> 0 | F28: ='g. Construction'!C29 -> 0 | G28: ='g. Construction'!C36 -> 0 | H28: ='g. Construction'!C43 -> 0 | I28: ='g. Construction'!C50 -> 0 | J28: ='g. Construction'!C57 -> 0 | K28: ='g. Construction'!C64 -> 0 | L28: ='g. Construction'!C71 -> 0 | M28: ='g. Construction'!C78 -> 0 | N28: 0
B29: h. Other | D29: ='h. Other'!C14 -> 0 | E29: ='h. Other'!C22 -> 0 | F29: ='h. Other'!C30 -> 0 | G29: ='h. Other'!C38 -> 0 | H29: ='h. Other'!C46 -> 0 | I29: ='h. Other'!C54 -> 0 | J29: ='h. Other'!C62 -> 0 | K29: ='h. Other'!C70 -> 0 | L29: ='h. Other'!C78 -> 0 | M29: ='h. Other'!C86 -> 0 | N29: 0
B30: i. Total Direct Charges (sum of 12a-12h) | D30: =SUM(D22:D29) -> 0 | E30: =SUM(E22:E29) -> 0 | F30: =SUM(F22:F29) -> 0 | G30: =SUM(G22:G29) -> 0 | H30: =SUM(H22:H29) -> 0 | I30: 0 | J30: 0 | K30: 0 | L30: 0 | M30: 0 | N30: 0
B31: j. Indirect Charges | D31: ='i. Indirect'!B16 -> 0 | E31: ='i. Indirect'!C16 -> 0 | F31: ='i. Indirect'!D16 -> 0 | G31: ='i. Indirect'!E16 -> 0 | H31: ='i. Indirect'!F16 -> 0 | I31: ='i. Indirect'!G16 -> 0 | J31: ='i. Indirect'!H16 -> 0 | K31: ='i. Indirect'!I16 -> 0 | L31: ='i. Indirect'!J16 -> 0 | M31: ='i. Indirect'!K16 -> 0 | N31: 0
B32: k. Totals (sum of 12i-12j) | D32: =ROUND(SUM(D30:D31),0) -> 0 | E32: 0 | F32: 0 | G32: 0 | H32: 0 | I32: 0 | J32: 0 | K32: 0 | L32: 0 | M32: 0 | N32: =ROUND(SUM(N30:N31),0) -> 0
A34: 7. | B34: Program Income | N34: =ROUND(SUM(D34:G34),0) -> 0
